{"text_format":"1","workbook":"xlsx","n_sheets":1,"sheets":["книга"],"not_rendered":{"charts":0,"images":0,"macros":0,"external_links":0,"defined_names":0,"comments":0,"pivot_tables":0},"unopened":[],"bounds":{"document_bytes":16777216,"sheet_cells":100000,"rows_first":2000,"rows_last":500,"rows_between":2000,"halvings":0,"cell_chars":16384,"cell_head_chars":4096},"cells_cut":0,"cells_raw":0,"read":"whole","date_system":"1900"}

{"sheet":"книга","index":0,"n_rows":56,"n_cols":39,"rows_kept":56,"cut":false,"hidden":false,"merged":[[7,7,11,7],[8,23,8,30],[8,31,11,31],[10,24,11,24],[10,25,11,25],[9,23,11,23],[10,26,11,26],[10,27,11,27],[10,28,11,28],[10,30,11,30],[9,26,9,30],[13,1,24,1],[26,1,37,1],[34,2,37,2],[3,5,3,31],[4,5,4,31],[5,5,5,31],[7,5,11,5],[10,15,11,15],[7,4,11,4],[17,2,20,2],[21,2,24,2],[8,8,8,13],[9,8,11,8],[7,2,11,2],[13,2,16,2],[7,6,11,6],[67,32,67,35],[7,8,7,31],[9,9,9,10],[10,21,11,21],[9,24,9,25],[10,10,11,10],[10,20,11,20],[10,11,11,11],[10,12,11,12],[10,13,11,13],[8,19,8,22],[9,19,11,19],[9,20,9,21],[9,22,11,22],[1,1,1,31],[52,1,52,3],[10,18,11,18],[10,29,11,29],[9,11,9,13],[7,1,11,1],[7,3,11,3],[8,14,8,18],[9,14,11,14],[9,15,9,16],[51,1,51,2],[2,1,2,31],[9,17,9,18],[10,17,11,17],[10,16,11,16],[10,9,11,9],[39,1,50,1],[47,2,50,2],[25,1,25,2],[38,1,38,2],[30,2,33,2],[39,2,42,2],[43,2,46,2],[26,2,29,2]]}
[null,null,null,null,null,null,null,null,null,null,null,null,null,null,null,null,null,null,null,null,null,null,null,null,null,null,null,null,null,"Приложение № 1"]
[null,"РЕЕСТР"]
[null,"оценки результатов рассмотрения обращений и принятых мер с учетом мнения авторов обращений в администрации Шайдуровского сельсовета Сузунского района с 01.01. 2023 г. по 31.03.2023 г"]
[]
[]
[]
[]
[null,"Форма обращения","Решение по обращению","Наименование органа, рассматривающего обращение","Количество благодарностей","Общее количество обращений","Общее количество вопросов, содержащихся в обращениях","Количество граждан, заинтересованных в решении вопроса","Результаты рассмотрения вопросов, содежащихся в обращениях"]
[null,null,null,null,null,null,null,null,"\"ПОДДЕРЖАНО\"",null,null,null,null,null,"в том числе \"МЕРЫ ПРИНЯТЫ\"",null,null,null,null,"\"НЕ ПОДДЕРЖАНО\"",null,null,null,"\"РАЗЪЯСНЕНО\"",null,null,null,null,null,null,null,"Количество вопросов, содержащихся в обращениях, находящихся на роассмотрении"]
[null,null,null,null,null,null,null,null,"По оценке органа, рассматривающего обращение","по оценке автора",null,"в том числе с дополнительными мерами контроля",null,null,"По оценке органа, рассматривающего обращение","по оценке автора",null,"в том числе с дополнительными мерами контроля",null,"По оценке органа, рассматривающего обращение","По оценке органа, в чей адрес поступило обращение",null,"С приминением дополнительных мер контроля","По оценке органа, рассматривающего обращение","По оценке органа, в чей адрес поступило обращение",null,"в том числе с дополнительными мерами контроля"]
[null,null,null,null,null,null,null,null,null,"Всего вопросов, на которые получена оценка авторов обращений","В т.ч. оценка автора обращения несовпадающая с оценкой органа","\"До принятия мер\"","С учетом мнения автора обращения по принятому решению","В т.ч. с положительной оценкой автора обращения",null,"Всего вопросов, на которые получена оценка авторов обращений","В т.ч. оценка автора обращения несовпадающая с оценкой органа","С учетом мнения автора обращения по принятому решению","В т.ч. с положительной оценкой автора обращения",null,"Всего вопросов с оценкой органа, в чей адрес поступило обращение","В т.ч. с оценкой органа, несовпадающей с оценкой иного орагна, рассматривающего обращение",null,null,"Всего вопросов с оценкой органа, в чей адрес поступило обращение","В т.ч. с оценкой органа, несовпадающей с оценкой иного орагна, рассматривающего обращение","\"До выполнения рекомендаций\"","\"До принятия решения\"","\"До принятия мер\"","С учетом мнения автора обращения ","В т.ч. с положительной оценкой автора обращения"]
[]
[null,1,2,3,4,5,6,7,8,9,10,11,12,13,14,15,16,17,18,19,20,21,22,23,24,25,26,27,28,29,30,31]
[null,"Письменные обращения","Рассмотрено с запросом документов и материалов","ФОИВ"]
[null,null,null,"ИОГВ",null,null,null,null,null,null,null,null,null,null,null,null,null,null,null,null,null,null,null,null,null,null,null,null,null,null,null,null,null,null,null,null,null,null,"о"]
[null,null,null,"ОМСУ",0,0,0,0,0,0,0,0,0,0,0,0,0,0,0,0,0,0,0,0,0,0,0,0,0,0,0,0]
[null,null,null,"другие"]
[null,null,"Направлено по компетенции","ФОИВ"]
[null,null,null,"ИОГВ"]
[null,null,null,"ОМСУ"]
[null,null,null,"другие"]
[null,null,"в том числе с запросом результатов ","ФОИВ"]
[null,null,null,"ИОГВ"]
[null,null,null,"ОМСУ"]
[null,null,null,"другие"]
[null,"Всего",null,{"$f":"SUM(G26)","v":0},{"$f":"SUM(E14+E15+E16+E17+E18+E19+E20+E21)","v":0},{"$f":"SUM(F14+F15+F16+F17+F18+F19+F20+F21)","v":0},{"$f":"SUM(G14+G15+G16+G17+G18+G19+G20+G21)","v":0},{"$f":"SUM(H14+H15+H16+H17+H18+H19+H20+H21)","v":0},0,0,0,0,0,0,0,0,0,0,0,0,0,0,0,0,0,0,0,0,0,0,0,0]
[null,"Личный прием граждан","Рассмотрено с запросом документов и материалов","ФОИВ"]
[null,null,null,"ИОГВ"]
[null,null,null,"ОМСУ",null,0,0,0,0,0,0,0,0,0,0,0,0,0,0,0,0,0,0,0,0,0,0,0,0,0,0,0]
[null,null,null,"другие"]
[null,null,"Направлено по компетенции","ФОИВ"]
[null,null,null,"ИОГВ"]
[null,null,null,"ОМСУ"]
[null,null,null,"другие"]
[null,null,"в том числе с запросом результатов ","ФОИВ"]
[null,null,null,"ИОГВ"]
[null,null,null,"ОМСУ"]
[null,null,null,"другие"]
[null,"Всего",null,{"$f":"SUM(G39)","v":0},{"$f":"SUM(E27+E28+E29+E30+E31+E32+E33+E34)","v":0},0,0,0,0,0,0,0,0,0,0,0,0,0,0,{"$f":"SUM(T27+T28+T29+T30+T31+T32+T33+T34+T35+T36+T37+T38)","v":0},{"$f":"SUM(U27+U28+U29+U30+U31+U32+U33+U34)","v":0},0,0,0,0,0,0,0,0,0,0,{"$f":"SUM(AF27+AF28+AF29+AF30+AF31+AF33+AF34)","v":0}]
[null,"Справочный телефон","Рассмотрено с запросом документов и материалов","ФОИВ"]
[null,null,null,"ИОГВ"]
[null,null,null,"ОМСУ",null,0,0,0,0,0,0,0,0,0,0,0,0,0,0,0,0,0,0,0,0,0,0,0,0,0,0,0]
[null,null,null,"другие"]
[null,null,"Направлено по компетенции","ФОИВ"]
[null,null,null,"ОГВИ"]
[null,null,null,"ОМСУ"]
[null,null,null,"другие"]
[null,null,"в том числе с запросом результатов ","ФОИВ"]
[null,null,null,"ИОГВ"]
[null,null,null,"ОМСУ"]
[null,null,null,"другие"]
[null,"Всего",null,{"$f":"SUM(G52)","v":0},{"$f":"SUM(E40+E41+E42+E43+E44+E45+E46+E47)","v":0},0,0,0,0,0,0,{"$f":"SUM(L40:L47)","v":0},0,0,0,0,0,0,0,0,0,0,0,0,0,0,0,0,0,0,0,0]
[null,"ИТОГО",null,null,{"$f":"SUM(E26+E39+E52)","v":0},{"$f":"SUM(F26+F39+F52)","v":0},0,0,0,0,0,0,0,0,0,0,0,0,0,0,0,0,0,0,0,0,0,0,0,0,0,0]
[null,null,null,null,null,108,48,66,null,null,null,null,null,null,null,null,null,null,{"$f":"SUM(F54+H54)","v":174}]
[null,null,null,null,null,23,8,8,null,null,null,null,null,null,null,null,null,null,{"$f":"SUM(F55+H55)","v":31}]
[null,null,null,null,null,null,0,19,null,null,null,null,null,null,null,null,null,null,{"$f":"SUM(F56+H56)","v":19}]